fUST/lending_fUST_20240205
["ID","MTS","AMOUNT","RATE_DAILY","PERIOD"]
[313300151,1707119449438,-681.33438682,0.00024656,2]
[313300152,1707119449447,-155.19771162,0.00024656,2]
[313300153,1707119449456,-533.04414731,0.00024657,2]
[313300154,1707119449468,-867.82603526,0.00024657,2]
[313300157,1707119661223,269.61127905,0.0001,2]
[313300160,1707120224445,9471.29765021,0.0001,2]
[313300161,1707120224482,870.02200773,0.0001,2]
[313300162,1707120226319,1651.31078755,0.0001,2]
[313300163,1707120230736,155.21714776,0.0001,2]
[313300164,1707120231549,155.21565323,0.0001,2]
[313300165,1707120239946,1015.45606466,0.0001,2]
[313300166,1707120240963,155.02635448,0.0001,2]
[313300167,1707120242877,235.71245553,0.0001,2]
[313300168,1707120246417,1651.31078755,0.0001,2]
[313300169,1707120246459,10313.97339256,0.0001,2]
[313300170,1707120248657,623.8795815,0.0001,2]
[313300171,1707120250451,344.80294325,0.0001,2]
[313300172,1707120252622,683.8950559,0.0001,2]
[313300173,1707120256942,155.02635448,0.0001,2]
[313300174,1707120257536,165.83929447,0.0001,2]
[313300175,1707120259931,1012.61183762,0.0001,2]
[313300176,1707120262437,10317.62622321,0.0001,2]
[313300177,1707120262856,234.9472934,0.0001,2]
[313300178,1707120262899,310.04340608,0.0001,2]
[313300179,1707120264285,1651.31078755,0.0001,2]
[313300180,1707120266666,622.02033283,0.0001,2]
[313300181,1707120267309,155.02635448,0.0001,2]
[313300182,1707120270440,343.79673943,0.0001,2]
[313300183,1707120272627,683.8950559,0.0001,2]
[313300184,1707120277941,1012.61183762,0.0001,2]
[313300185,1707120278858,235.60609502,0.0001,2]
[313300186,1707120278966,229.89919555,0.0001,2]
[313300187,1707120279007,156.30980184,0.0001,2]
[313300188,1707120281354,10310.32056191,0.0001,2]
[313300189,1707120282311,1651.31078755,0.0001,2]
[313300190,1707120286682,622.02033283,0.0001,2]
[313300191,1707120287308,172.50976368,0.0001,2]
[313300192,1707120288171,310.04340608,0.0001,2]
[313300193,1707120290440,343.79673943,0.0001,2]
[313300194,1707120296618,683.8950559,0.0001,2]
[313300195,1707120298441,10317.62622321,0.0001,2]
[313300196,1707120302289,188.38715119,0.0001,2]
[313300197,1707120302655,622.02033283,0.0001,2]
[313300198,1707120306450,343.79673943,0.0001,2]
[313300199,1707120307946,621.01809405,0.0001,2]
[313300200,1707120314622,683.8950559,0.0001,2]
[313300201,1707120316171,310.04340608,0.0001,2]
[313300202,1707120316656,622.02033283,0.0001,2]
[313300204,1707120318445,4399.22203384,0.0001,2]
[313300205,1707120322457,343.79673943,0.0001,2]
[313300206,1707120330634,683.8950559,0.0001,2]
[313300207,1707120342464,291.96003463,0.0001,2]
[313300208,1707120350244,202.29332681,0.0001,2]
[313300209,1707120356629,683.8950559,0.0001,2]
[313300210,1707120358672,490.12773987,0.0001,2]
[313300211,1707120376713,683.8950559,0.0001,2]
[313300212,1707120400636,683.8950559,0.0001,2]
[313300214,1707120416635,683.8950559,0.0001,2]
[313300216,1707120436753,683.8950559,0.0001,2]
[313300220,1707120458641,683.8950559,0.0001,2]
[313300222,1707120480796,683.8950559,0.0001,2]
[313300225,1707120498653,683.8950559,0.0001,2]
[313300231,1707120518654,683.8950559,0.0001,2]
[313300232,1707120534653,683.8950559,0.0001,2]
[313300236,1707120556652,610.04007482,0.0001,2]
[313300281,1707120638859,-316.15413216,0.00022556,2]
[313300282,1707120638870,-441.5939877,0.00022557,2]
[313300283,1707120638880,-2552.60674537,0.00023095,2]
[313300284,1707120638889,-848.498091,0.00023615,2]
[313300285,1707120638900,-24900.0,0.00023682,2]
[313300286,1707120638910,-628.05175783,0.000244,2]
[313300287,1707120638920,-5974.98,0.000245,2]
[313300288,1707120638930,-4518.03,0.00024647,3]
[313300289,1707120638940,-4247.31,0.00024647,3]
[313300290,1707120638950,-3539.43,0.00024647,3]
[313300291,1707120638960,-513.34937677,0.00024657,2]
[313300292,1707120638970,-500.0,0.00024657,2]
[313300293,1707120638980,-500.0,0.00024657,2]
[313300294,1707120638991,-500.0,0.00024657,2]
[313300295,1707120639004,-500.0,0.00024657,2]
[313300296,1707120639134,-500.0,0.00024657,2]
[313300297,1707120639143,-751.15,0.00024657,2]
[313300298,1707120639153,-500.0,0.00024657,2]
[313300299,1707120639162,-500.0,0.00024657,2]
[313300300,1707120639170,-500.0,0.00024657,2]
[313300301,1707120639179,-827.55,0.00024657,2]
[313300302,1707120639189,-507.35740571,0.00024657,2]
[313300303,1707120639197,-2143.45,0.00024657,2]
[313300304,1707120639206,-500.0,0.00024657,2]
[313300305,1707120639216,-500.0,0.00024657,2]
[313300306,1707120639225,-500.0,0.00024657,2]
[313300307,1707120639234,-925.09,0.00024657,2]
[313300308,1707120639243,-895.1,0.00024657,2]
[313300309,1707120639252,-500.0,0.00024657,2]
[313300310,1707120639262,-823.02,0.00024657,2]
[313300311,1707120639271,-565.68,0.00024657,2]
[313300312,1707120639280,-505.2109281,0.00024657,2]
[313300313,1707120639289,-500.0,0.00024657,2]
[313300314,1707120639301,-541.2,0.00024657,2]
[313300315,1707120639310,-516.26866858,0.00024657,2]
[313300316,1707120639319,-490.63276288,0.00024657,2]
[313300317,1707120639328,-2557.15,0.00024657,2]
[313300318,1707120639337,-1066.02,0.00024657,2]
[313300319,1707120639346,-722.03,0.00024657,2]
[313300320,1707120639355,-513.54070211,0.00024657,2]
[313300321,1707120639364,-516.85590033,0.00024657,2]
[313300322,1707120639373,-454.3302008,0.00024657,2]
[313300323,1707120639382,-500.0,0.00024657,2]
[313300324,1707120639392,-2424.16,0.00024657,2]
[313300325,1707120639401,-3857.7,0.00024657,2]
[313300326,1707120639410,-611.42,0.00024657,2]
[313300327,1707120639419,-5475.53,0.00024706,2]
[313300328,1707120639428,-500.0,0.00024706,2]
[313300329,1707120639438,-1064.12,0.00024706,2]
[313300330,1707120639447,-500.0,0.00024706,2]
[313300332,1707120639456,-631.94,0.00024706,2]
[313300333,1707120639465,-500.0,0.00024706,2]
[313300335,1707120639474,-868.96,0.00024706,2]
[313300337,1707120639483,-500.0,0.00024706,2]
[313300339,1707120639493,-6199.66700634,0.00024706,2]
[313300341,1707120639502,-500.0,0.00024931,2]
[313300343,1707120639513,-500.0,0.00024931,2]
[313300345,1707120639522,-751.15,0.00024931,2]
[313300347,1707120639531,-332.21613929,0.00024931,2]
[313300349,1707120639540,-500.0,0.00024931,2]
[313300351,1707120639551,-500.0,0.00024931,2]
[313300353,1707120639560,-827.55,0.00024931,2]
[313300355,1707120639570,-2143.45,0.00024931,2]
[313300357,1707120639578,-500.0,0.00024931,2]
[313300359,1707120639587,-501.09334332,0.00024931,2]
[313300361,1707120639596,-500.0,0.00024931,2]
[313300363,1707120639605,-925.09,0.00024931,2]
[313300364,1707120639614,-895.1,0.00024931,2]
[313300365,1707120639623,-500.0,0.00024931,2]
[313300366,1707120639633,-823.02,0.00024931,2]
[313300367,1707120639642,-565.68,0.00024931,2]
[313300368,1707120639650,-541.2,0.00024931,2]
[313300369,1707120639660,-2557.15,0.00024931,2]
[313300370,1707120639668,-1066.02,0.00024931,2]
[313300371,1707120639677,-722.03,0.00024931,2]
[313300372,1707120639686,-500.0,0.00024931,2]
[313300373,1707120639695,-2424.16,0.00024931,2]
[313300374,1707120639704,-3857.7,0.00024931,2]
[313300375,1707120639713,-611.42,0.00024931,2]
[313300376,1707120639722,-327.45885351,0.00024956,2]
[313300377,1707120639731,-4035.82532671,0.00024956,2]
[313300378,1707120639739,-3977.44618093,0.00024956,2]
[313300379,1707120639748,-426.88835692,0.00024956,2]
[313300380,1707120639759,-499.11435295,0.0002496,5]
[313300381,1707120639768,-5475.53,0.0002498,2]
[313300382,1707120639777,-500.0,0.0002498,2]
[313300383,1707120639786,-1064.12,0.0002498,2]
[313300384,1707120639795,-500.0,0.0002498,2]
[313300385,1707120639804,-631.94,0.0002498,2]
[313300386,1707120639813,-500.0,0.0002498,2]
[313300387,1707120639822,-868.96,0.0002498,2]
[313300388,1707120639831,-500.0,0.0002498,2]
[313300389,1707120639840,-500.0,0.00024999,2]
[313300390,1707120639849,-272.24888462,0.00025,2]
[313300391,1707120639859,-6297.30004496,0.00025,2]
[313300392,1707120639869,-643.75763596,0.00025,2]
[313300393,1707120639877,-2223.36351654,0.00025,2]
[313300394,1707120639887,-585.25727983,0.00025194,2]
[313300395,1707120639895,-729.26286399,0.00025194,2]
[313300396,1707120639905,-1637.44798311,0.000252,6]
[313300397,1707120639914,-500.0,0.00025205,2]
[313300398,1707120639923,-500.0,0.00025205,2]
[313300399,1707120639931,-751.15,0.00025205,2]
[313300400,1707120639940,-500.0,0.00025205,2]
[313300401,1707120639949,-500.0,0.00025205,2]
[313300402,1707120639958,-827.55,0.00025205,2]
[313300403,1707120639967,-2143.45,0.00025205,2]
[313300404,1707120639976,-500.0,0.00025205,2]
[313300405,1707120639986,-500.0,0.00025205,2]
[313300406,1707120639997,-925.09,0.00025205,2]
[313300407,1707120640006,-895.1,0.00025205,2]
[313300408,1707120640016,-500.0,0.00025205,2]
[313300409,1707120640025,-823.02,0.00025205,2]
[313300410,1707120640035,-565.68,0.00025205,2]
[313300411,1707120640044,-541.2,0.00025205,2]
[313300412,1707120640054,-2557.15,0.00025205,2]
[313300413,1707120640063,-1066.02,0.00025205,2]
[313300414,1707120640074,-722.03,0.00025205,2]
[313300415,1707120640083,-500.0,0.00025205,2]
[313300416,1707120640092,-2424.16,0.00025205,2]
[313300417,1707120640101,-3857.7,0.00025205,2]
[313300418,1707120640110,-611.42,0.00025205,2]
[313300419,1707120640119,-678.93503093,0.00025208,2]
[313300420,1707120640128,-218.68242014,0.00025208,2]
[313300421,1707120640137,-5475.53,0.00025253,2]
[313300422,1707120640146,-500.0,0.00025253,2]
[313300423,1707120640155,-1064.12,0.00025253,2]
[313300424,1707120640164,-500.0,0.00025253,2]
[313300425,1707120640174,-631.94,0.00025253,2]
[313300426,1707120640183,-500.0,0.00025253,2]
[313300427,1707120640193,-868.96,0.00025253,2]
[313300428,1707120640202,-500.0,0.00025253,2]
[313300429,1707120640211,-1640.46942817,0.00025297,2]
[313300430,1707120640221,-500.0,0.00025478,2]
[313300432,1707120640230,-500.0,0.00025478,2]
[313300433,1707120640239,-267.81469663,0.00025478,2]
[313300434,1707120640248,-500.0,0.00025478,2]
[313300435,1707120640258,-500.0,0.00025478,2]
[313300436,1707120640267,-500.0,0.00025478,2]
[313300437,1707120640277,-500.0,0.00025478,2]
[313300438,1707120640287,-500.0,0.00025478,2]
[313300439,1707120640296,-500.0,0.00025478,2]
[313300440,1707120640305,-583.16691554,0.00025478,2]
[313300441,1707120640315,-500.0,0.00025478,2]
[313300442,1707120640324,-500.0,0.00025478,2]
[313300443,1707120640333,-500.0,0.00025478,2]
[313300444,1707120640342,-500.0,0.00025478,2]
[313300445,1707120640351,-500.0,0.00025478,2]
[313300446,1707120640361,-500.0,0.00025478,2]
[313300447,1707120640370,-500.0,0.00025478,2]
[313300448,1707120640379,-500.0,0.00025478,2]
[313300449,1707120640389,-500.0,0.00025478,2]
[313300450,1707120640398,-500.0,0.00025478,2]
[313300451,1707120640407,-500.0,0.00025478,2]
[313300452,1707120640417,-500.0,0.00025478,2]
[313300453,1707120640427,-500.0,0.00025479,2]
[313300454,1707120640436,-500.0,0.00025479,2]
[313300455,1707120640445,-751.15,0.00025479,2]
[313300456,1707120640455,-500.0,0.00025479,2]
[313300457,1707120640464,-500.0,0.00025479,2]
[313300458,1707120640473,-827.55,0.00025479,2]
[313300459,1707120640482,-2143.45,0.00025479,2]
[313300460,1707120640493,-502.61344587,0.00025479,2]
[313300461,1707120640502,-500.0,0.00025479,2]
[313300462,1707120640512,-925.09,0.00025479,2]
[313300463,1707120640521,-895.1,0.00025479,2]
[313300464,1707120640530,-500.0,0.00025479,2]
[313300465,1707120640539,-823.02,0.00025479,2]
[313300466,1707120640548,-565.68,0.00025479,2]
[313300467,1707120640557,-541.2,0.00025479,2]
[313300468,1707120640566,-2557.15,0.00025479,2]
[313300469,1707120640575,-1066.02,0.00025479,2]
[313300470,1707120640585,-722.03,0.00025479,2]
[313300471,1707120640594,-500.0,0.00025479,2]
[313300472,1707120640603,-2424.16,0.00025479,2]
[313300473,1707120640612,-3857.7,0.00025479,2]
[313300474,1707120640622,-611.42,0.00025479,2]
[313300475,1707120640631,-5475.53,0.00025527,2]
[313300476,1707120640640,-500.0,0.00025527,2]
[313300477,1707120640649,-1064.12,0.00025527,2]
[313300478,1707120640658,-500.0,0.00025527,2]
[313300479,1707120640668,-631.94,0.00025527,2]
[313300480,1707120640677,-500.0,0.00025527,2]
[313300481,1707120640686,-868.96,0.00025527,2]
[313300482,1707120640695,-500.0,0.00025527,2]
[313300483,1707120640705,-1233.34553121,0.00025596,2]
[313300484,1707120640714,-500.0,0.00025753,2]
[313300485,1707120640723,-500.0,0.00025753,2]
[313300486,1707120640732,-751.15,0.00025753,2]
[313300487,1707120640741,-500.0,0.00025753,2]
[313300488,1707120640751,-500.0,0.00025753,2]
[313300489,1707120640759,-827.55,0.00025753,2]
[313300490,1707120640769,-2143.45,0.00025753,2]
[313300491,1707120640778,-500.0,0.00025753,2]
[313300492,1707120640787,-925.09,0.00025753,2]
[313300493,1707120640796,-895.1,0.00025753,2]
[313300494,1707120640805,-228.09610258,0.00025753,2]
[313300495,1707120640814,-823.02,0.00025753,2]
[313300496,1707120640822,-565.68,0.00025753,2]
[313300497,1707120640831,-541.2,0.00025753,2]
[313300498,1707120640840,-2557.15,0.00025753,2]
[313300499,1707120640849,-1066.02,0.00025753,2]
[313300500,1707120640857,-722.03,0.00025753,2]
[313300501,1707120640866,-500.0,0.00025753,2]
[313300502,1707120640876,-2424.16,0.00025753,2]
[313300503,1707120640884,-3857.7,0.00025753,2]
[313300504,1707120640893,-611.42,0.00025753,2]
[313300505,1707120640902,-5475.53,0.00025801,2]
[313300506,1707120640912,-500.0,0.00025801,2]
[313300507,1707120640921,-1064.12,0.00025801,2]
[313300508,1707120640931,-500.0,0.00025801,2]
[313300509,1707120640940,-631.94,0.00025801,2]
[313300510,1707120640949,-500.0,0.00025801,2]
[313300511,1707120640958,-868.96,0.00025801,2]
[313300512,1707120640967,-500.0,0.00025801,2]
[313300513,1707120640976,-151.0,0.0002591,2]
[313300514,1707120640986,-207.47781071,0.00026,2]
[313300515,1707120640997,-500.0,0.00026027,2]
[313300516,1707120641006,-500.0,0.00026027,2]
[313300517,1707120641016,-751.15,0.00026027,2]
[313300518,1707120641026,-500.0,0.00026027,2]
[313300519,1707120641036,-500.0,0.00026027,2]
[313300520,1707120641045,-827.55,0.00026027,2]
[313300521,1707120641054,-2143.45,0.00026027,2]
[313300522,1707120641062,-500.0,0.00026027,2]
[313300523,1707120641073,-925.09,0.00026027,2]
[313300524,1707120641082,-895.1,0.00026027,2]
[313300525,1707120641090,-823.02,0.00026027,2]
[313300526,1707120641099,-565.68,0.00026027,2]
[313300527,1707120641108,-541.2,0.00026027,2]
[313300528,1707120641118,-2557.15,0.00026027,2]
[313300529,1707120641127,-1066.02,0.00026027,2]
[313300530,1707120641136,-722.03,0.00026027,2]
[313300531,1707120641145,-500.0,0.00026027,2]
[313300532,1707120641155,-2424.16,0.00026027,2]
[313300533,1707120641165,-3857.7,0.00026027,2]
[313300534,1707120641174,-611.42,0.00026027,2]
[313300535,1707120641183,-200.0,0.00026049,7]
[313300537,1707120641192,-5475.53,0.00026075,2]
[313300539,1707120641201,-500.0,0.00026075,2]
[313300541,1707120641210,-1064.12,0.00026075,2]
[313300543,1707120641219,-500.0,0.00026075,2]
[313300545,1707120641228,-631.94,0.00026075,2]
[313300547,1707120641238,-500.0,0.00026075,2]
[313300549,1707120641246,-868.96,0.00026075,2]
[313300551,1707120641255,-500.0,0.00026075,2]
[313300553,1707120641265,-500.0,0.00026301,2]
[313300555,1707120641274,-500.0,0.00026301,2]
[313300557,1707120641283,-751.15,0.00026301,2]
[313300559,1707120641293,-500.0,0.00026301,2]
[313300561,1707120641302,-500.0,0.00026301,2]
[313300563,1707120641311,-827.55,0.00026301,2]
[313300565,1707120641320,-2143.45,0.00026301,2]
[313300567,1707120641329,-487.59819755,0.00026301,2]
[313300569,1707120641339,-925.09,0.00026301,2]
[313300571,1707120641348,-895.1,0.00026301,2]
[313300573,1707120641357,-823.02,0.00026301,2]
[313300575,1707120641366,-565.68,0.00026301,2]
[313300577,1707120641375,-541.2,0.00026301,2]
[313300579,1707120641385,-2557.15,0.00026301,2]
[313300581,1707120641394,-1066.02,0.00026301,2]
[313300583,1707120641404,-722.03,0.00026301,2]
[313300585,1707120641412,-500.0,0.00026301,2]
[313300587,1707120641421,-2424.16,0.00026301,2]
[313300588,1707120641431,-3857.7,0.00026301,2]
[313300591,1707120641440,-611.42,0.00026301,2]
[313300592,1707120641449,-5475.53,0.00026349,2]
[313300594,1707120641459,-500.0,0.00026349,2]
[313300597,1707120641469,-1064.12,0.00026349,2]
[313300598,1707120641479,-500.0,0.00026349,2]
[313300601,1707120641489,-631.94,0.00026349,2]
[313300602,1707120641498,-500.0,0.00026349,2]
[313300604,1707120641508,-868.96,0.00026349,2]
[313300611,1707120641600,-500.0,0.00026349,2]
[313300612,1707120641610,-14670.02486484,0.00026471,2]
[313300613,1707120641620,-1633.28247414,0.00026473,2]
[313300614,1707120641629,-1200.7118793,0.00026573,2]
[313300615,1707120641638,-500.0,0.00026575,2]
[313300616,1707120641647,-500.0,0.00026575,2]
[313300617,1707120641657,-751.15,0.00026575,2]
[313300618,1707120641665,-500.0,0.00026575,2]
[313300619,1707120641675,-500.0,0.00026575,2]
[313300620,1707120641685,-827.55,0.00026575,2]
[313300621,1707120641694,-2143.45,0.00026575,2]
[313300622,1707120641703,-925.09,0.00026575,2]
[313300623,1707120641712,-895.1,0.00026575,2]
[313300624,1707120641722,-823.02,0.00026575,2]
[313300625,1707120641731,-565.68,0.00026575,2]
[313300626,1707120641740,-541.2,0.00026575,2]
[313300627,1707120641749,-2557.15,0.00026575,2]
[313300628,1707120641760,-1066.02,0.00026575,2]
[313300629,1707120641769,-722.03,0.00026575,2]
[313300630,1707120641778,-500.0,0.00026575,2]
[313300631,1707120641787,-2424.16,0.00026575,2]
[313300632,1707120641797,-3857.7,0.00026575,2]
[313300633,1707120641806,-611.42,0.00026575,2]
[313300634,1707120641815,-3400.0,0.0002659,3]
[313300635,1707120641824,-5475.53,0.00026623,2]
[313300636,1707120641833,-250.47363038,0.00026623,2]
[313300637,1707120641842,-1064.12,0.00026623,2]
[313300638,1707120641851,-500.0,0.00026623,2]
[313300639,1707120641860,-631.94,0.00026623,2]
[313300640,1707120641870,-500.0,0.00026623,2]
[313300641,1707120641879,-868.96,0.00026623,2]
[313300642,1707120641888,-500.0,0.00026623,2]
[313300643,1707120641898,-1353.76903021,0.0002679,2]
[313300644,1707120641907,-355.2,0.000268,2]
[313300645,1707120641917,-72811.03913016,0.000268,2]
[313300646,1707120641926,-155.02480397,0.00026846,2]
[313300647,1707120641936,-500.0,0.00026849,2]
[313300648,1707120641945,-238.87843141,0.00026849,2]
[313300649,1707120641954,-751.15,0.00026849,2]
[313300650,1707120641963,-500.0,0.00026849,2]
[313300651,1707120641972,-500.0,0.00026849,2]
[313300652,1707120641982,-827.55,0.00026849,2]
[313300653,1707120641995,-2143.45,0.00026849,2]
[313300654,1707120642004,-925.09,0.00026849,2]
[313300655,1707120642014,-895.1,0.00026849,2]
[313300656,1707120642024,-823.02,0.00026849,2]
[313300657,1707120642034,-565.68,0.00026849,2]
[313300658,1707120642044,-541.2,0.00026849,2]
[313300659,1707120642053,-2557.15,0.00026849,2]
[313300660,1707120642063,-1066.02,0.00026849,2]
[313300661,1707120642073,-722.03,0.00026849,2]
[313300662,1707120642083,-500.0,0.00026849,2]
[313300663,1707120642092,-2424.16,0.00026849,2]
[313300664,1707120642102,-3857.7,0.00026849,2]
[313300665,1707120642111,-611.42,0.00026849,2]
[313300666,1707120642120,-3821.37276872,0.00026897,2]
[313300684,1707120643065,-2949.52,0.0002679,3]
[313300686,1707120643077,-1654.15723128,0.00026897,2]
[313300688,1707120643086,-1064.12,0.00026897,2]
[313300690,1707120643095,-500.0,0.00026897,2]
[313300692,1707120643104,-631.94,0.00026897,2]
[313300694,1707120643113,-125.67741742,0.00026897,2]
[313300696,1707120643124,-374.32258258,0.00026897,2]
[313300698,1707120643133,-868.96,0.00026897,2]
[313300700,1707120643142,-500.0,0.00026897,2]
[313300702,1707120643151,-628.05175781,0.000269,3]
[313300704,1707120643161,-155.01395126,0.00027,2]
[313300705,1707120643170,-246.77313025,0.00027,27]
[313300706,1707120643550,-253.22686975,0.00027,27]
[313300707,1707120643559,-1113.6668866,0.00027,2]
[313300708,1707120643570,-250.74280404,0.00027,2]
[313300731,1707120841930,813.88,0.00029,30]
[313300780,1707121832198,-316.15413216,0.00023092,2]
[313300781,1707121832207,-570.62922012,0.00023093,2]
[313300782,1707121832216,-590.08684832,0.00023095,2]
[313300783,1707121832225,-1718.12979939,0.000232,2]
[313300821,1707121838206,-560.24366431,0.000232,2]
[313300822,1707121838215,-392.626209,0.00023202,2]
[313300823,1707121838227,-2607.373791,0.00023202,2]
[313300824,1707121838236,-267.6209222,0.00023304,2]
[313300825,1707121838245,-471.03881841,0.00024557,2]
[313300826,1707121838254,-1994.65357705,0.00024609,2]
[313300827,1707121838263,-337.94364399,0.00024657,2]
[313300837,1707121841393,-162.05635601,0.00024657,2]
[313300838,1707121841403,-500.0,0.00024657,2]
[313300839,1707121841412,-578.18,0.00024657,2]
[313300840,1707121841421,-559.44,0.00024657,2]
[313300841,1707121841431,-514.38,0.00024657,2]
[313300842,1707121841441,-500.0,0.00024657,2]
[313300843,1707121841450,-500.0,0.00024657,2]
[313300844,1707121841459,-404.91796637,0.00024657,2]
[313300845,1707121841468,-665.08,0.00024657,2]
[313300846,1707121841477,-500.0,0.00024657,2]
[313300847,1707121841486,-500.0,0.00024657,2]
[313300848,1707121841495,-1515.1,0.00024657,2]
[313300849,1707121841504,-500.0,0.00024657,2]
[313300850,1707121841514,-543.1,0.00024657,2]
[313300851,1707121841523,-2411.06,0.00024657,2]
[313300852,1707121841532,-500.0,0.00024657,2]
[313300853,1707121841541,-294.3959918,0.000247,2]
[313300854,1707121841550,-500.0,0.00024929,2]
[313300855,1707121841559,-517.22,0.00024929,2]
[313300856,1707121841568,-666.26,0.00024929,2]
[313300857,1707121841577,-1598.22,0.00024929,2]
[313300858,1707121841586,-500.0,0.00024929,2]
[313300859,1707121841605,-500.0,0.00024929,2]
[313300860,1707121841617,-1569.53,0.00024929,2]
[313300861,1707121841627,-500.0,0.00024929,2]
[313300862,1707121841636,-3422.21,0.00024929,2]
[313300863,1707121841646,-267.19771988,0.0002493,2]
[313300864,1707121841655,-1339.66,0.0002493,2]
[313300865,1707121841665,-500.0,0.0002493,2]
[313300866,1707121841674,-500.0,0.00024931,2]
[313300867,1707121841684,-500.0,0.00024931,2]
[313300868,1707121841694,-578.18,0.00024931,2]
[313300869,1707121841703,-559.44,0.00024931,2]
[313300870,1707121841713,-514.38,0.00024931,2]
[313300871,1707121841722,-500.0,0.00024931,2]
[313300872,1707121841731,-500.0,0.00024931,2]
[313300873,1707121841741,-665.08,0.00024931,2]
[313300874,1707121841750,-500.0,0.00024931,2]
[313300875,1707121841760,-500.0,0.00024931,2]
[313300876,1707121841769,-1515.1,0.00024931,2]
[313300877,1707121841779,-500.0,0.00024931,2]
[313300878,1707121841790,-543.1,0.00024931,2]
[313300879,1707121841800,-2326.76197758,0.00024931,2]
[313300939,1707121846296,-84.29802242,0.00024931,2]
[313300940,1707121846306,-320.61994395,0.00024931,2]
[313301074,1707123038439,-155.02480397,0.00022795,2]
[313301076,1707123038449,-316.15413216,0.00022796,2]
[313301078,1707123038458,-1804.06033176,0.00022797,2]
[313301080,1707123038467,-196.26399453,0.00022831,2]
[313301082,1707123038476,-2120.98858619,0.00023095,2]
[313301085,1707123038485,-212.48940819,0.00023095,2]
[313301087,1707123038494,-169.684484,0.0002315,2]
[313301088,1707123038503,-412.1589661,0.00024557,2]
[313301090,1707123038511,-155.02325349,0.00024656,2]
[313301092,1707123038520,-521.29179462,0.00024657,2]
[313301122,1707123041537,-252.30064042,0.00024657,2]
[313301152,1707123043397,-14202.45154215,0.00024657,2]
[313301158,1707123043453,-3647.6229851,0.00024657,2]
[313301160,1707123043463,-253.2906788,0.00024657,2]
[313301163,1707123043474,-477.27450965,0.00024657,2]
[313301165,1707123043485,-293.26520376,0.00024657,2]
[313301328,1707124232687,-717.73938521,0.00021988,2]
[313301329,1707124232697,-144.20596983,0.00021989,2]
[313301330,1707124232709,-171.94816233,0.00021989,2]
[313301331,1707124232718,-155.02790502,0.00021999,2]
[313301332,1707124232728,-293.96652096,0.00022,4]
[313301333,1707124232737,-166.920566,0.00022326,2]
[313301334,1707124232746,-2013.7280278,0.00023095,2]
[313301335,1707124232755,-1284.25308848,0.00024647,3]
[313301359,1707124240057,-1333.6861088,0.00024647,3]
[313301362,1707124240252,-725.70080272,0.00024647,3]
[313301363,1707124240261,-62.45684363,0.00024647,3]
[313301364,1707124240272,-1571.92043813,0.00024647,3]
[313301365,1707124240285,-1151.99271824,0.00024647,3]
[313301366,1707124240294,-798.93717085,0.00024654,2]
[313301367,1707124240304,-500.0,0.00024656,2]
[313301368,1707124240314,-620.35187951,0.00024656,2]
[313301369,1707124240323,-4707.21321674,0.00024657,2]
[313301370,1707124240335,-1966.2140589,0.00024657,2]